Cogmind - Beta 13 @@@ ROGUE MODE // 2024.03.31 @ 01:46:07 Player: Flaborized Result: Destroyed by P-80 Master with Gamma Rifle Performance ------------- Evolutions (6) 3000 Regions Visited (15) 3000 Robots Destroyed (79) 395 Value Destroyed (3070) 3070 Prototype IDs (6) 120 Alien Tech Used (0) 0 Bonus (1065) 1065 TOTAL SCORE: 10650 Bonus ------- Follower Combat Kills 65 Met Warlord at Base 500 MAIN.C Attacked Warlord 500 Cogmind --------- Core Integrity 0/1150 Matter 290/300 Energy 96/100 System Corruption 3% Temperature Cool (0) Movement Core (100) Ox1 Location -3/Proximity Caves Parts ------- > --- POWER (1) -------- (None) > --- PROPULSION (4) --- (None) > --- UTILITY (11) ----- (None) > --- WEAPON (3) ------- Quantum Rifle > --- INVENTORY (5) ---- Light Antimatter Reactor Hacking Suite Hacking Suite Great Maul Peak State ------------ > --- POWER ------------ Light Angular Momentum Engine > --- PROPULSION ------- Armored Treads Medium Treads Medium Treads Advanced Medium Treads > --- UTILITY ---------- High-capacity Storage Unit Improved Sensor Array Advanced Terrain Scan Processor Advanced Targeting Computer Improved Target Analyzer Improved Weapon Cycler Hardened Heavy Armor Plating Improved Medium Armor Plating Focal Shield Hacking Suite > --- WEAPON ----------- Hypervelocity Gauss Rifle Hypervelocity Gauss Rifle KE Penetrator > --- INVENTORY -------- Improved Ion Engine Light Nuclear Core Medium Treads Carbon-fiber Leg Carbon-fiber Leg Carbon-fiber Leg Titanium Leg Advanced Heat Sink Advanced Sensor Array Remote Shield Hacking Suite Hacking Suite Hacking Suite Hacking Suite Advanced Hacking Suite Autogun Autogun Flak Gun Grenade Launcher Heavy Hammer [Rating: 87] Favorites ----------- Power Light Angular Momentum Engine Engine Light Angular Momentum Engine Power Core Light Nuclear Core Reactor Antimatter Reactor Propulsion Medium Treads Treads Medium Treads Leg Aluminum Leg Wheel Wheel Hover Unit Aerolev Unit Utility Advanced Targeting Computer Device Improved Sensor Array Storage High-capacity Storage Unit Processor Advanced Targeting Computer Hackware Hacking Suite Protection Hardened Heavy Armor Plating Weapon Autogun Energy Gun Backup Laser III Energy Cannon Vortex Driver Ballistic Gun Autogun Launcher Grenade Launcher Build | -11 -10 -10 -9 -9 -9 -8 -8 -7 -6 -5 -4 -4 -4 -4 -3 ------- Run | Yrd Mat Min Mat Min Exi Min Mat Fac Fac Fac Fac Upp Upp War Pro Slots Evolved 12 | . . . 2 . . . 2 2 2 2 2 . . . . Power . | . . . . . . . . . . . . . . . . Propulsion 2 | . . . 2 . . . . . . . . . . . . Utility 9 | . . . . . . . 1 2 2 2 2 . . . . Weapon 1 | . . . . . . . 1 . . . . . . . . Parts Attached 124 | 8 3 6 19 4 . . 9 17 9 6 7 8 13 14 1 Power 8 | 2 . . . . . . 1 2 1 . . . 1 1 . Engine 6 | 2 . . . . . . 1 2 1 . . . . . . Core 1 | . . . . . . . . . . . . . 1 . . Reactor 1 | . . . . . . . . . . . . . . 1 . Propulsion 34 | 2 2 2 6 . . . 3 7 2 . 1 . 2 7 . Treads 12 | . . . . . . . . 4 2 . 1 . 1 4 . Leg 11 | 2 2 2 2 . . . . . . . . . 1 2 . Wheel 1 | . . . . . . . . . . . . . . 1 . Hover 10 | . . . 4 . . . 3 3 . . . . . . . Flight . | . . . . . . . . . . . . . . . . Utility 41 | 2 1 1 5 1 . . 2 7 4 3 5 4 3 3 . Device 18 | 1 . . . 1 . . . 1 2 3 2 3 2 3 . Storage 4 | 1 . . 2 . . . . . 1 . . . . . . Processor 7 | . 1 1 . . . . 2 1 . . 1 1 . . . Hackware 2 | . . . . . . . . 2 . . . . . . . Protection 10 | . . . 3 . . . . 3 1 . 2 . 1 . . Artifact . | . . . . . . . . . . . . . . . . Weapon 41 | 2 . 3 8 3 . . 3 1 2 3 1 4 7 3 1 Energy Gun 7 | 1 . 1 . . . . . . . . . . 3 1 1 Energy Cannon 1 | . . . . . . . . . . . . . . 1 . Ballistic Gun 26 | 1 . 1 6 2 . . 3 1 2 3 1 2 3 1 . Ballistic Cannon . | . . . . . . . . . . . . . . . . Launcher 7 | . . 1 2 1 . . . . . . . 2 1 . . Special Weapon . | . . . . . . . . . . . . . . . . Impact Weapon . | . . . . . . . . . . . . . . . . Slashing Weapon . | . . . . . . . . . . . . . . . . Piercing Weapon . | . . . . . . . . . . . . . . . . Special Melee Weapon . | . . . . . . . . . . . . . . . . Unidentified Prototypes 4 | . . . 1 . . . . . . . . . . 3 . Corrupted Parts 1 | . . . . . . . . . . . . . . 1 . System Corruption 1 | . . . . . . . . . . . . . . 1 . Parts Lost 30 | . . 2 . . . . 1 5 . . 1 4 14 3 . Power 3 | . . . . . . . . 1 . . . 1 1 . . Propulsion 9 | . . . . . . . 1 . . . . 1 4 3 . Utility 13 | . . . . . . . . 3 . . 1 1 8 . . Weapon 5 | . . 2 . . . . . 1 . . . 1 1 . . Highest Loss Streak 13 | . . 2 . . . . 1 4 . . 1 4 13 2 . To Critical Strikes . | . . . . . . . . . . . . . . . . Average Slot Usage (%) 84 | . 100 99 99 96 100 100 97 94 93 93 93 93 35 44 . Engine 7 | . 14 14 11 11 11 11 9 7 6 5 5 4 . 4 . Treads 10 | . . . . . . . . 7 26 23 21 20 7 1 . Leg 5 | . 28 28 14 . . . . . . . . . . . . Hover 8 | . . . 29 44 44 44 35 22 . . . . . 8 . Device 8 | . 1 . . 7 11 11 . 1 6 17 20 14 9 6 . Storage 6 | . 14 14 11 11 11 11 9 7 6 5 5 5 2 . . Processor 9 | . 12 14 3 . . . 16 9 13 11 10 15 5 . . Hackware 2 | . . . . . . . . 7 6 5 5 5 1 . . Protection 5 | . . . 6 . . . . 6 6 5 10 9 1 8 . Energy Gun 3 | . 14 13 1 . . . . . . . . . . 10 . Ballistic Gun 14 | . 14 13 19 19 22 22 25 22 20 16 15 14 5 . . Naked Turns 297 | . . . . . . . . . . . . . 127 91 79 Heaviest Build 99 | 15 15 16 31 32 32 32 36 44 79 91 97 99 71 36 6 Greatest Support 112 | 20 20 20 40 32 32 32 32 112 112 104 106 106 106 108 3 Greatest Overweight (x) 5 | 2 . . 1 . . . 1 1 . . . 1 1 5 1 Average Overweight (x) . | . . . . . . . . . . . . . . . . Largest Inventory Capacity 20 | 8 8 8 15 15 15 15 15 15 20 20 20 20 20 5 5 Average Capacity 13 | 7 8 8 9 15 15 15 15 15 17 20 20 20 11 5 5 Most Carried 20 | 4 8 8 11 14 14 15 15 15 20 20 20 20 19 5 5 Average Carried 12 | 2 6 7 8 11 14 14 14 13 15 18 19 19 9 4 4 Final Capacity 20 | 8 8 8 15 15 15 15 15 15 20 20 20 20 5 5 5 Final Carried 20 | 4 8 8 11 14 14 15 15 13 20 20 20 20 5 5 4 Class Distribution -------------------- 36% | Mutant 24% | Scavenger-Gunner 16% | Scavenger-Tank 10% | Gunner 9% | Tank Dominant Class ---------------- Mutant | -10/Materials Mutant | -10/Mines Mutant | -9/Materials Mutant | -9/Mines Mutant | -9/Exiles Mutant | -8/Mines Gunner | -8/Materials Gunner | -7/Factory Scavenger-Gunner | -6/Factory Scavenger-Tank | -5/Factory Scavenger-Tank | -4/Factory Scavenger-Gunner | -4/Upper Caves Mutant | -4/Upper Caves Tank | -4/Warlord Mutant | -3/Proximity Caves Resources | -11 -10 -10 -9 -9 -9 -8 -8 -7 -6 -5 -4 -4 -4 -4 -3 ----------- Run | Yrd Mat Min Mat Min Exi Min Mat Fac Fac Fac Fac Upp Upp War Pro Matter Collected 3328 | 288 148 91 374 171 . 11 289 308 288 120 340 365 155 380 . Remotely 678 | . . . . . . . . 30 288 120 240 . . . . Salvage Created 3419 | 115 290 81 368 252 . . 415 499 43 177 495 281 403 . . Parts 178 | 9 14 5 26 19 . . 26 22 3 6 24 7 17 . . Haulers Intercepted 4 | . 1 . 2 . . . 1 . . . . . . . . Recyclers Shooed 1 | . . . . . . . . 1 . . . . . . . Parts Field Recycled . | . . . . . . . . . . . . . . . . Retrieved Matter . | . . . . . . . . . . . . . . . . Parts Self-Destructed 23 | . . . . . . . . . . . . 5 16 . 2 Prevented 1 | . . . . . . . . . . . . 1 . . . Kills | -11 -10 -10 -9 -9 -9 -8 -8 -7 -6 -5 -4 -4 -4 -4 -3 ------- Run | Yrd Mat Min Mat Min Exi Min Mat Fac Fac Fac Fac Upp Upp War Pro Combat Hostiles Destroyed 64 | . 5 2 10 10 . . 5 8 1 3 7 6 7 . . Melee 1 | . . . . . . . . . . . . 1 . . . Guns 47 | . 5 . 5 8 . . 5 8 1 3 4 3 5 . . AOE 16 | . . 2 5 2 . . . . . . 3 2 2 . . Classes Destroyed 13 | 2 3 1 1 1 . . 1 1 1 1 1 . . . . Worker 1 | . . . . . . . . . . . 1 . . . . Builder 1 | . . . . . . . . . . 1 . . . . . Tunneler 3 | 3 . . . . . . . . . . . . . . . Hauler 4 | . 1 . 2 . . . 1 . . . . . . . . Recycler 4 | 1 . . . . . . 1 2 . . . . . . . Operator 2 | . 1 . 1 . . . . . . . . . . . . Swarmer 14 | . . . 5 4 . . . 4 . 1 . . . . . Grunt 23 | . 5 . 3 5 . . . . . 1 5 3 1 . . Brawler 4 | . . . . 1 . . . 1 . . . . 2 . . Duelist 3 | . . . . . . . . 1 . . . 1 1 . . Sentry 10 | . . 2 2 . . . 4 1 . . . . 1 . . Hunter 5 | . . . . . . . 1 1 . 1 . 2 . . . Programmer 5 | . . . . . . . . . 1 . 2 . 2 . . Best Kill Streak 6 | 4 3 2 4 4 . . 2 4 1 2 3 3 6 . . Combat Bots Only 6 | . 2 2 4 4 . . 2 4 1 1 3 3 6 . . Max Kills in Single Turn 3 | 1 1 1 2 2 . . 1 1 1 1 3 1 1 . . Gunslinging . | . . . . . . . . . . . . . . . . Exploded 3 | . . 1 2 2 . . . . . . 3 1 1 . . Melee 1 | . . . . . . . . . . . . 1 . . . Uniques/NPCs Destroyed . | . . . . . . . . . . . . . . . . Combat | -11 -10 -10 -9 -9 -9 -8 -8 -7 -6 -5 -4 -4 -4 -4 -3 -------- Run | Yrd Mat Min Mat Min Exi Min Mat Fac Fac Fac Fac Upp Upp War Pro Hostile Shots Fired 506 | . 24 14 18 20 . . 34 69 8 15 40 89 95 45 35 Missed 166 | . . 6 6 10 . . 12 19 2 8 9 33 29 19 13 Damage Taken 6819 | . 265 139 122 90 . . 327 874 89 165 720 928 1705 935 460 Core 1400 | . 34 46 17 8 . . 43 92 . . 20 17 424 304 395 Absorbed by Shields . | . . . . . . . . . . . . . . . . Ignored by Resistances 79 | . . . . . . . . . . 4 . 75 . . . Core Remaining (%) 91 | 100 . 68 . . . 93 92 86 100 100 . . . . . Volleys Fired 219 | 6 36 5 26 19 . . 22 25 7 8 17 18 30 . . Largest 3 | 2 2 1 2 2 . . 3 3 3 3 3 3 3 . . Hottest 99 | 70 70 30 46 53 . . 69 74 69 69 99 99 89 . . Shots Fired 478 | 12 56 5 44 34 . . 59 71 21 24 51 38 63 . . Gun 450 | 12 56 2 40 31 . . 59 71 21 24 51 28 55 . . Cannon . | . . . . . . . . . . . . . . . . Launcher 28 | . . 3 4 3 . . . . . . . 10 8 . . Special . | . . . . . . . . . . . . . . . . Kinetic 424 | 6 36 2 40 31 . . 59 71 21 24 51 28 55 . . Thermal 26 | 6 20 . . . . . . . . . . . . . . Explosive 28 | . . 3 4 3 . . . . . . . 10 8 . . Electromagnetic . | . . . . . . . . . . . . . . . . Robot Hit Streak 21 | 5 8 2 6 6 . . 21 15 9 7 20 10 11 . . Robot Miss Streak 5 | 1 4 1 3 2 . . 3 5 3 4 2 3 3 . . Penetration Max 1 | . . . . . . . . . . . . . 1 . . Secondary Targets 5 | . . . 1 . . . . 1 . . 1 1 1 . . Max Gunslinging Chain 1 | . . . 1 . . . . 1 . . 1 1 1 . . Shots Hit Robots 328 | 8 37 3 27 20 . . 47 51 15 11 39 24 46 . . Core Hits 196 | 5 14 6 17 16 . . 14 30 3 6 18 29 38 . . Critical Kills 11 | . . . . . . . . . . 1 4 3 3 . . Critical Parts Destroyed 8 | . . . 1 . . . . . . . 5 2 . . . Critical Strikes 21 | 1 1 . 1 . . . . . . 1 9 5 3 . . Burn 2 | 1 1 . . . . . . . . . . . . . . Destroy 19 | . . . 1 . . . . . . 1 9 5 3 . . Melee Attacks . | . . . . . . . . . . . . . . . . Impact . | . . . . . . . . . . . . . . . . Slashing . | . . . . . . . . . . . . . . . . Piercing . | . . . . . . . . . . . . . . . . Sneak Attacks . | . . . . . . . . . . . . . . . . Combat Hostiles . | . . . . . . . . . . . . . . . . Follow-up Attacks . | . . . . . . . . . . . . . . . . Damage Inflicted 6780 | 101 460 77 699 520 . . 685 747 260 215 612 825 1579 . . Guns 4429 | 101 460 15 391 279 . . 685 747 260 215 426 221 629 . . Cannons . | . . . . . . . . . . . . . . . . Explosions 2335 | . . 62 308 241 . . . . . . 181 593 950 . . Melee . | . . . . . . . . . . . . . . . . Ramming 16 | . . . . . . . . . . . 5 11 . . . Kinetic 4203 | 63 272 15 391 279 . . 685 747 260 215 426 221 629 . . Thermal 226 | 38 188 . . . . . . . . . . . . . . Explosive 2335 | . . 62 308 241 . . . . . . 181 593 950 . . Electromagnetic . | . . . . . . . . . . . . . . . . Impact . | . . . . . . . . . . . . . . . . Slashing . | . . . . . . . . . . . . . . . . Piercing . | . . . . . . . . . . . . . . . . Highest Corruption 17 | . . . . . . . . 2 . 1 5 5 17 17 3 Average Corruption 4 | . . . . . . . . 1 . 1 3 5 13 2 3 Corruption Purged . | . . . . . . . . . . . . . . . . Corruption Blocked 15 | . . . . . . . . . . . . . . 15 . Effects 63 | . . . . . . . . 7 . 1 1 40 12 2 . Message Errors 15 | . . . . . . . . 2 . 1 . 10 1 1 . Matter Fused 12 | . . . . . . . . . . . . 11 1 . . Heat Flow Errors 8 | . . . . . . . . 3 . . . 4 1 . . Energy Discharges 7 | . . . . . . . . 2 . . . 5 . . . Parts Rejected 2 | . . . . . . . . . . . . 1 1 . . Data Loss (minor) 8 | . . . . . . . . . . . 1 2 4 1 . Data Loss (major) 2 | . . . . . . . . . . . . 2 . . . Misfires 4 | . . . . . . . . . . . . 4 . . . Alerts 1 | . . . . . . . . . . . . 1 . . . Misdirections 2 | . . . . . . . . . . . . . 2 . . Weapon Failures 2 | . . . . . . . . . . . . . 2 . . Overload Shots . | . . . . . . . . . . . . . . . . Overflow Damage 54 | . . . 6 . . . . 38 . . . . 10 . . Projectiles . | . . . . . . . . . . . . . . . . Explosions 54 | . . . 6 . . . . 38 . . . . 10 . . Melee . | . . . . . . . . . . . . . . . . Knockbacks . | . . . . . . . . . . . . . . . . Impact . | . . . . . . . . . . . . . . . . Kinetic . | . . . . . . . . . . . . . . . . Secondary . | . . . . . . . . . . . . . . . . Self-Inflicted Damage 348 | . . 21 . . . . . 172 . . . 10 145 . . Shots 10 | . . 1 . . . . . 2 . . . 1 6 . . Rammed 3 | . . . . . . . . . . . 2 1 . . . Targets Rammed 4 | . . . . . . . . . . . 2 2 . . . Kicked . | . . . . . . . . . . . . . . . . Crushed 1 | . . . . . . . . . . . . 1 . . . Highest Temperature 277 | 27 102 9 37 22 . . 105 277 80 47 254 255 137 166 . Average Temperature 51 | 11 43 9 12 10 . . 33 79 33 21 71 73 70 101 . Received Heat Transfer 1035 | . 144 36 27 30 . . 81 36 . 54 72 186 306 42 21 Effects 2 | . . . . . . . . 1 . . 1 . . . . Interference 2 | . . . . . . . . 1 . . 1 . . . . Siege Activations . | . . . . . . . . . . . . . . . . Robots Corrupted . | . . . . . . . . . . . . . . . . Combat Hostiles . | . . . . . . . . . . . . . . . . Parts Fried . | . . . . . . . . . . . . . . . . Impact Corruptions . | . . . . . . . . . . . . . . . . Robots Melted . | . . . . . . . . . . . . . . . . Combat Hostiles . | . . . . . . . . . . . . . . . . Parts Melted 4 | . 2 . . . . . . . . 2 . . . . . Heat Transferred 814 | 185 629 . . . . . . . . . . . . . . Parts Sabotaged . | . . . . . . . . . . . . . . . . Parts Stolen . | . . . . . . . . . . . . . . . . Parts Stripped . | . . . . . . . . . . . . . . . . Power Chain Reactions . | . . . . . . . . . . . . . . . . Alert | -11 -10 -10 -9 -9 -9 -8 -8 -7 -6 -5 -4 -4 -4 -4 -3 ------- Run | Yrd Mat Min Mat Min Exi Min Mat Fac Fac Fac Fac Upp Upp War Pro Peak Influence 398 | 20 155 60 304 398 . . 213 289 112 89 175 . . . . Initial 118 | . 13 1 . 118 . . . 96 82 14 . . . . . Average 87 | 4 70 40 120 258 . . 122 161 57 48 38 . . . . Maximum Alert Level 1 | . . . 1 1 . . 1 1 . . . . . . . Low Security (%) 90 | 100 100 100 70 26 . 100 96 83 100 100 100 . . . . Level 1 9 | . . . 29 73 . . 3 16 . . . . . . . Level 2 . | . . . . . . . . . . . . . . . . Level 3 . | . . . . . . . . . . . . . . . . Level 4 . | . . . . . . . . . . . . . . . . Level 5 . | . . . . . . . . . . . . . . . . High Security . | . . . . . . . . . . . . . . . . Max Security . | . . . . . . . . . . . . . . . . Squads Dispatched 22 | . 2 1 2 . . . 1 5 1 2 6 . 1 . 1 Investigation 4 | . . 1 . . . . . 2 . 1 . . . . . Extermination 2 | . . . . . . . . . . 1 1 . . . . Reinforcement 11 | . 2 . 2 . . . 1 . 1 . 5 . . . . Assault 2 | . . . . . . . . . . . . . 1 . 1 Garrison 3 | . . . . . . . . 3 . . . . . . . Intercept . | . . . . . . . . . . . . . . . . Searches Triggered . | . . . . . . . . . . . . . . . . Construction Impeded . | . . . . . . . . . . . . . . . . Haulers Reinforced . | . . . . . . . . . . . . . . . . Active Scanning Responses . | . . . . . . . . . . . . . . . . Cargo Convoy Interrupts . | . . . . . . . . . . . . . . . . Stealth | -11 -10 -10 -9 -9 -9 -8 -8 -7 -6 -5 -4 -4 -4 -4 -3 --------- Run | Yrd Mat Min Mat Min Exi Min Mat Fac Fac Fac Fac Upp Upp War Pro Distress Signals 16 | . . . 2 . . . 3 1 2 1 4 . . 3 . Communications Jammed . | . . . . . . . . . . . . . . . . Distress Signals . | . . . . . . . . . . . . . . . . Times Spotted 200 | . 14 2 22 10 . . 6 9 4 16 28 9 15 51 14 Peak Tracking Total 23 | . 2 2 5 4 . . 2 4 2 4 7 4 8 23 12 Tactical Retreats 11 | . . . 2 . . . . . 1 . . 1 3 3 1 Traps | -11 -10 -10 -9 -9 -9 -8 -8 -7 -6 -5 -4 -4 -4 -4 -3 ------- Run | Yrd Mat Min Mat Min Exi Min Mat Fac Fac Fac Fac Upp Upp War Pro Traps Triggered 3 | . . . . . . . . 1 . . 1 . . 1 . Indirectly . | . . . . . . . . . . . . . . . . Trap Hack Attempts . | . . . . . . . . . . . . . . . . Triggered . | . . . . . . . . . . . . . . . . Disarmed . | . . . . . . . . . . . . . . . . Reprogrammed . | . . . . . . . . . . . . . . . . Reused . | . . . . . . . . . . . . . . . . Traps Extracted . | . . . . . . . . . . . . . . . . Installed . | . . . . . . . . . . . . . . . . Triggered 37 | . . . . . . . . . . . . 3 1 31 2 Machines | -11 -10 -10 -9 -9 -9 -8 -8 -7 -6 -5 -4 -4 -4 -4 -3 ---------- Run | Yrd Mat Min Mat Min Exi Min Mat Fac Fac Fac Fac Upp Upp War Pro Machines Disabled 10 | . . 1 . 2 . . . 4 . . 3 . . . . Max in Single Turn 4 | . . 1 . 1 . . . 4 . . 3 . . . . Machines Repaired . | . . . . . . . . . . . . . . . . Machines Dismantled . | . . . . . . . . . . . . . . . . Machines Sabotaged . | . . . . . . . . . . . . . . . . Overloaded Fab Kills . | . . . . . . . . . . . . . . . . Hacking | -11 -10 -10 -9 -9 -9 -8 -8 -7 -6 -5 -4 -4 -4 -4 -3 --------- Run | Yrd Mat Min Mat Min Exi Min Mat Fac Fac Fac Fac Upp Upp War Pro Machines Accessed 18 | . . 1 6 1 2 . 1 2 . . . . 1 4 . Terminals 6 | . . . 5 1 . . . . . . . . . . . Fabricators 1 | . . . . . . . . 1 . . . . . . . Repair Stations . | . . . . . . . . . . . . . . . . Recycling Units 1 | . . . . . . . 1 . . . . . . . . Scanalyzers 1 | . . . 1 . . . . . . . . . . . . Garrison Access 1 | . . . . . . . . 1 . . . . . . . Total Hacks 44 | . . 1 22 2 2 . 2 6 . . . . 1 8 . Successful 30 | . . 1 15 1 2 . . 2 . . . . 1 8 . Failed 14 | . . . 7 1 . . 2 4 . . . . . . . Catastrophic 1 | . . . 1 . . . . . . . . . . . . Database Lockouts . | . . . . . . . . . . . . . . . . Manual 14 | . . . 11 1 . . 2 . . . . . . . . Terminals 16 | . . . 14 2 . . . . . . . . . . . Fabricators 3 | . . . . . . . . 3 . . . . . . . Repair Stations . | . . . . . . . . . . . . . . . . Recycling Units 2 | . . . . . . . 2 . . . . . . . . Scanalyzers 8 | . . . 8 . . . . . . . . . . . . Garrison Access 3 | . . . . . . . . 3 . . . . . . . Terminal Hacks 18 | . . 1 5 1 2 . . . . . . . 1 8 . Record 9 | . . . . 1 2 . . . . . . . . 6 . Robot Analysis 2 | . . . 2 . . . . . . . . . . . . Prototype ID Bank 1 | . . . 1 . . . . . . . . . . . . Open Door 4 | . . 1 . . . . . . . . . . 1 2 . Emergency Access Points 1 | . . . 1 . . . . . . . . . . . . Hauler Manifests 1 | . . . 1 . . . . . . . . . . . . Fabricator Hacks 2 | . . . . . . . . 2 . . . . . . . Load Schematic 1 | . . . . . . . . 1 . . . . . . . Build 1 | . . . . . . . . 1 . . . . . . . Repair Station Hacks . | . . . . . . . . . . . . . . . . Recycling Unit Hacks . | . . . . . . . . . . . . . . . . Scanalyzer 8 | . . . 8 . . . . . . . . . . . . Insert Component 4 | . . . 4 . . . . . . . . . . . . Analyze 4 | . . . 4 . . . . . . . . . . . . Garrison Access Hacks . | . . . . . . . . . . . . . . . . Unauthorized Hacks 2 | . . . 2 . . . . . . . . . . . . Terminals 2 | . . . 2 . . . . . . . . . . . . Botnet 2 | . . . 2 . . . . . . . . . . . . Fabricators . | . . . . . . . . . . . . . . . . Repair Stations . | . . . . . . . . . . . . . . . . Recycling Units . | . . . . . . . . . . . . . . . . Scanalyzers . | . . . . . . . . . . . . . . . . Garrison Access . | . . . . . . . . . . . . . . . . Data Cores Recovered . | . . . . . . . . . . . . . . . . Used . | . . . . . . . . . . . . . . . . Hacking Detections 10 | . . . 6 1 . . 1 2 . . . . . . . Full Trace Events 2 | . . . . . . . . 2 . . . . . . . Feedback Events . | . . . . . . . . . . . . . . . . Feedback Blocked . | . . . . . . . . . . . . . . . . Robot Schematics Acquired . | . . . . . . . . . . . . . . . . Robots Built . | . . . . . . . . . . . . . . . . Authchips . | . . . . . . . . . . . . . . . . Time . | . . . . . . . . . . . . . . . . Total Robot Build Rating . | . . . . . . . . . . . . . . . . Part Schematics Acquired 4 | . . . 4 . . . . . . . . . . . . Parts Built 1 | . . . . . . . . 1 . . . . . . . Authchips . | . . . . . . . . . . . . . . . . Time 36 | . . . . . . . . 36 . . . . . . . Total Part Build Rating 3 | . . . . . . . . 3 . . . . . . . Parts Repaired . | . . . . . . . . . . . . . . . . Time . | . . . . . . . . . . . . . . . . Parts Recycled . | . . . . . . . . . . . . . . . . Recycled Matter . | . . . . . . . . . . . . . . . . Retrieved Matter . | . . . . . . . . . . . . . . . . Retrieved Components . | . . . . . . . . . . . . . . . . Parts Scanalyzed 4 | . . . 4 . . . . . . . . . . . . Part Schematics Acquired 4 | . . . 4 . . . . . . . . . . . . Parts Damaged 1 | . . . 1 . . . . . . . . . . . . Bothacking | -11 -10 -10 -9 -9 -9 -8 -8 -7 -6 -5 -4 -4 -4 -4 -3 ------------ Run | Yrd Mat Min Mat Min Exi Min Mat Fac Fac Fac Fac Upp Upp War Pro Used RIF Installer . | . . . . . . . . . . . . . . . . Robots Hacked . | . . . . . . . . . . . . . . . . Non-combat . | . . . . . . . . . . . . . . . . Combat . | . . . . . . . . . . . . . . . . Robot Hacks Applied . | . . . . . . . . . . . . . . . . Relay Couplers Released . | . . . . . . . . . . . . . . . . Fabnet Peak Effective % . | . . . . . . . . . . . . . . . . Robots Rewired . | . . . . . . . . . . . . . . . . Allies Hacked . | . . . . . . . . . . . . . . . . Hacks Repelled . | . . . . . . . . . . . . . . . . Allies | -11 -10 -10 -9 -9 -9 -8 -8 -7 -6 -5 -4 -4 -4 -4 -3 -------- Run | Yrd Mat Min Mat Min Exi Min Mat Fac Fac Fac Fac Upp Upp War Pro Total Allies 3 | . . 3 . . . . . . . . . . . . . Largest Group 3 | . . 3 3 . . . . . . . . . . . . Highest-Rated Group 40 | . . 40 40 . . . . . . . . . . . . Highest-Rated Ally 16 | . . 16 16 . . . . . . . . . . . . Total Orders 6 | . . . . . . . . . . . . 6 . . . EXPLORE 5 | . . . . . . . . . . . . 5 . . . RETURN 1 | . . . . . . . . . . . . 1 . . . Ally Attacks 38 | . . . 38 . . . . . . . . . . . . Total Damage 411 | . . . 411 . . . . . . . . . . . . Kills 6 | . . . 6 . . . . . . . . . . . . Allies Corrupted . | . . . . . . . . . . . . . . . . Allies Melted 3 | . . . . . . . . . . . . . . 3 . Intel | -11 -10 -10 -9 -9 -9 -8 -8 -7 -6 -5 -4 -4 -4 -4 -3 ------- Run | Yrd Mat Min Mat Min Exi Min Mat Fac Fac Fac Fac Upp Upp War Pro Robot Analysis Total 2 | . . . 2 . . . . . . . . . . . . Derelict Logs Recovered 6 | . . 1 . 1 . . . . . . . 2 2 . . Drone Launches 14 | . . . . . . . . . . . . 4 . 10 . Drone Recoveries 2 | . . . . . . . . . . . . 2 . . . Exploration | -11 -10 -10 -9 -9 -9 -8 -8 -7 -6 -5 -4 -4 -4 -4 -3 ------------- Run | Yrd Mat Min Mat Min Exi Min Mat Fac Fac Fac Fac Upp Upp War Pro Turns Passed 7360 | 84 572 447 513 184 151 30 284 660 620 432 626 1314 242 1118 83 Spaces Moved 5707 | 46 350 347 596 291 396 72 231 456 353 237 309 695 274 894 160 Core 614 | 12 . . . . . . . . . . . . 257 185 160 Treads 1750 | . . . . . . . . 103 353 237 309 695 14 39 . Legs 885 | 34 350 347 133 . . . . . . . . . 3 18 . Wheels 28 | . . . . . . . . . . . . . . 28 . Hover 2430 | . . . 463 291 396 72 231 353 . . . . . 624 . Flight . | . . . . . . . . . . . . . . . . Fastest Speed 38 | 50 120 120 38 38 38 38 38 100 160 162 158 158 50 50 50 Average Speed 105 | 112 120 120 56 38 38 38 80 115 161 162 159 158 56 114 51 Slowest Speed 300 | 150 120 120 120 38 38 38 105 160 163 162 162 238 200 300 100 Overloaded Moves . | . . . . . . . . . . . . . . . . Propulsion Burnouts . | . . . . . . . . . . . . . . . . Robots Hopped . | . . . . . . . . . . . . . . . . Cave-ins Triggered . | . . . . . . . . . . . . . . . . Exploration Rate (%) 40 | 4 24 82 52 55 88 27 23 12 11 10 10 98 35 91 24 Regions Visited 15 Branch Regions 8 Pre-discovered Areas 3 | . . . . 1 . . . . . . . 1 1 . . Known Exits Taken . | . . . . . . . . . . . . . . . . Unknown Exits Taken 15 | 1 1 1 1 1 1 1 1 1 1 1 1 1 1 1 . Scrap Searched 5 | . . . . . . 1 . . . . . 3 1 . . Spaces Dug 12 | . . 7 . . . . . . . . . 5 . . . Terrain Destroyed 191 | . . 21 39 21 . . . 28 . . 2 49 31 . . Melee . | . . . . . . . . . . . . . . . . Projectile 15 | . . . . . . . . . . . 1 8 6 . . AOE 174 | . . 21 39 21 . . . 28 . . . 41 24 . . Terrain Rammed . | . . . . . . . . . . . . . . . . Walls Destroyed . | . . . . . . . . . . . . . . . . Machines Disabled . | . . . . . . . . . . . . . . . . Actions | -11 -10 -10 -9 -9 -9 -8 -8 -7 -6 -5 -4 -4 -4 -4 -3 --------- Run | Yrd Mat Min Mat Min Exi Min Mat Fac Fac Fac Fac Upp Upp War Pro Total 6701 | 62 455 374 736 331 395 74 295 549 389 270 417 884 326 983 161 Wait 502 | . 44 4 74 15 . . 15 29 10 16 77 157 4 57 . Move 5692 | 45 349 346 595 290 395 71 230 455 352 236 308 694 273 893 160 Hop . | . . . . . . . . . . . . . . . . Pick Up 62 | 3 12 5 7 3 . 2 8 9 6 1 2 2 . 2 . Fast Attach 55 | 7 1 3 5 1 . . 3 9 4 2 1 2 5 12 . Attach 26 | . . 1 4 . . . 1 4 1 2 3 1 7 1 1 Detach 6 | . . 1 1 . . . . . 1 . 1 . 2 . . Swap 43 | 1 2 2 10 3 . . 5 4 4 2 3 5 1 1 . Drop 85 | . 11 7 14 . . 1 11 14 4 3 3 3 4 10 . Fire 219 | 6 36 5 26 19 . . 22 25 7 8 17 18 30 . . Melee . | . . . . . . . . . . . . . . . . Ram . | . . . . . . . . . . . . . . . . Kick . | . . . . . . . . . . . . . . . . Crush 4 | . . . . . . . . . . . 2 2 . . . Escape Stasis . | . . . . . . . . . . . . . . . . Rewire 7 | . . . . . . . . . . . . . . 7 . Trap . | . . . . . . . . . . . . . . . . Miscellaneous . | . . . . . . . . . . . . . . . . Route ------- -11/Scrapyard -10/Materials -10/Mines -9/Materials (discovered 2 exits: *Mat / *Min) -9/Mines -9/Exiles -8/Mines -8/Materials -7/Factory -6/Factory -5/Factory -4/Factory -4/Upper Caves -4/Upper Caves -4/Warlord -3/Proximity Caves History --------- Turn | Location | Event 17 | -11/Scrapyard | Discovered new exit (range 15) 85 | -11/Scrapyard | Entered Materials 85 | -10/Materials | Discovered new exit (range 8) 302 | -10/Materials | Build established: Mutant 657 | -10/Materials | Entered Mines 975 | -10/Mines | Met a Derelict shopkeep closing up shop 988 | -10/Mines | Learned Materials terminal intel 1075 | -10/Mines | Discovered new exit (range 11) 1090 | -10/Mines | Assisted by bots powering up and referring to "LRC-V3" 1104 | -10/Mines | Entered Materials 1104 | -9/Materials | Accompanied by 3 allies 1104 | -9/Materials | Evolved 2 slots: Propulsion x2 1105 | -9/Materials | Loaded intel: 12 terminal locations 1541 | -9/Materials | Discovered new exit (range 16) 1578 | -9/Materials | Discovered new exit (range 14) 1617 | -9/Materials | Entered Mines 1688 | -9/Mines | Learned location of Zion (-7) 1799 | -9/Mines | Deemed a non-threat by the Exiles lab entrance 1799 | -9/Mines | Discovered new exit (range 5) 1801 | -9/Mines | Entered Exiles 1801 | -9/Exiles | Found Exiles lab abandoned 1947 | -9/Exiles | Discovered new exit (range 12) 1952 | -9/Exiles | Entered Mines 1979 | -8/Mines | Discovered new exit (range 9) 1982 | -8/Mines | Entered Materials 1982 | -8/Materials | Evolved 2 slots: Utility x1, Weapon x1 2191 | -8/Materials | Met 7R-MNS 2208 | -8/Materials | Discovered new exit (range 5) 2266 | -8/Materials | Entered Factory 2266 | -7/Factory | Evolved 2 slots: Utility x2 2267 | -7/Factory | Caught up to 7R-MNS 2349 | -7/Factory | Build established: Gunner 2453 | -7/Factory | Fabricated Hacking Suite (x1) 2495 | -7/Factory | Garrison activated, responded to threat 2613 | -7/Factory | Lost 4 parts (1p2u1w) 2791 | -7/Factory | Discovered new exit (range 11) 2926 | -7/Factory | Entered another Factory area 2926 | -6/Factory | Evolved 2 slots: Utility x2 2927 | -6/Factory | Caught up to 7R-MNS 3343 | -6/Factory | Build established: Scavenger-Gunner 3460 | -6/Factory | Discovered new exit (range 11) 3546 | -6/Factory | Entered another Factory area 3546 | -5/Factory | Evolved 2 slots: Utility x2 3547 | -5/Factory | Caught up to 7R-MNS 3834 | -5/Factory | Build established: Scavenger-Tank 3881 | -5/Factory | Discovered new exit (range 16) 3978 | -5/Factory | Entered another Factory area 3978 | -4/Factory | Evolved 2 slots: Utility x2 3979 | -4/Factory | Caught up to 7R-MNS 4467 | -4/Factory | Discovered new exit (range 14) 4505 | -4/Factory | 7R-MNS successfully reached the Upper Caves 4604 | -4/Factory | Entered Upper Caves 4959 | -4/Upper Caves | Build established: Scavenger-Gunner 5294 | -4/Upper Caves | Encountered a Warlord checkpoint 5298 | -4/Upper Caves | Learned location of Testing (-3) 5385 | -4/Upper Caves | Discovered new exit (range 89) 5691 | -4/Upper Caves | Learned Research terminal intel 5918 | -4/Upper Caves | Entered another Upper Caves area 5944 | -4/Upper Caves | Lost 4 parts (1p1n1u1w) 5962 | -4/Upper Caves | System corruption reached 10% 5973 | -4/Upper Caves | Attracted the attention of an 0b10 outpost 6019 | -4/Upper Caves | Released all parts (6) 6048 | -4/Upper Caves | Lost 13 parts (1p4n7u1w) 6053 | -4/Upper Caves | Learned location of 1 exit from Research 6146 | -4/Upper Caves | Discovered new exit (range 7) 6160 | -4/Upper Caves | Entered Warlord 6178 | -4/Warlord | System corruption cleaned by Quarantine Array 6214 | -4/Warlord | Found Prototype Device 6214 | -4/Warlord | Identified Minesniffer Drone Bay 6318 | -4/Warlord | Met Warlord 6343 | -4/Warlord | Warlord's base attacked by MAIN.C 6575 | -4/Warlord | Met EX-DEC 6585 | -4/Warlord | Build established: Tank 6587 | -4/Warlord | Found Prototype Energy Cannon 6587 | -4/Warlord | Identified Vortex Driver 6693 | -4/Warlord | Warlord forces counterattacked 6911 | -4/Warlord | Spotted Striker 7018 | -4/Warlord | Warlord base infiltrated, sounded retreat 7019 | -4/Warlord | Enhanced Grunt warped into view 7019 | -4/Warlord | Enhanced Grunt warped into view 7019 | -4/Warlord | Enhanced Grunt warped into view 7019 | -4/Warlord | Enhanced Demolisher warped into view 7019 | -4/Warlord | Enhanced Demolisher warped into view 7019 | -4/Warlord | Enhanced Demolisher warped into view 7121 | -4/Warlord | Lost 6 allies 7164 | -4/Warlord | Spotted Striker 7173 | -4/Warlord | Spotted Striker 7189 | -4/Warlord | Spotted Executioner 7202 | -4/Warlord | Spotted Striker 7202 | -4/Warlord | Spotted Executioner 7229 | -4/Warlord | Spotted Executioner 7241 | -4/Warlord | Released all parts (9) 7244 | -4/Warlord | Core integrity fell below 50% 7263 | -4/Warlord | Lost 10 allies 7270 | -4/Warlord | Spotted Striker 7274 | -4/Warlord | Discovered new exit (range 9) 7278 | -4/Warlord | Entered Proximity Caves 7330 | -3/Proximity Caves | Attracted the attention of an 0b10 outpost 7340 | -3/Proximity Caves | Core integrity fell below 20% 7361 | -3/Proximity Caves | Destroyed by P-80 Master with Gamma Rifle Last Messages --------------- 07241_ Released Antimatter Reactor. 07241_ Released Backup Laser III. 07241_ Released Backup Plating III. 07241_ Released Mak. Transmission Jammer. 07241_ Released Helical Railgun. 07241_ Released Arm. Medium Treads. 07243_ ANNOUNCEMENT: Detected 2 Grunt squads, 1 Programmer squad, 1 Mixed squad, with prototype support. 07244_ The unstable cave ceiling collapses. 07258_ Connecting with WAR.Sys... 07260_ System corrupted: Component data lost. 07274_ EXIT=FOUND [Achievement: Charge!!!] LOCATION=UNKNOWN GOAL=ESCAPE 07330_ Y-72 Warden: "DETECTED UNIDENTIFIED DERELICT." 07331_ Penetrated by Slug. 07334_ Y-72 Warden: "REQUESTING BACKUP." 07361_ Penetrated by Slug. 07361_ Slug penetrates Wall. Map ----- +----------------------------------------------------+ | ###??????????????????????????????????????????????? | | #??????????????????????????????????????????????? | | ##?????????????????????????????????????????????? | | ##????????????????????????????????????????????? | | #????????????????????????????????????????????? | | ####????????????????????????????????????????????? | | ##???????????????????????????????????????????????? | | #????????????????????????????????????????????????? | | ?????????????????????????????????????????????????? | | ?? #?????????????????????????????????????????????? | | ?? #?????????????????????????????????????????????? | | ## #?###?????????????????????????????????????????? | | ## #?????????????????????????????????????????? | | #?? ??????????????????????????????????????? | | ## ????????????##????????????????????????? | | ?????##????? ??????????????????????? | | ????## ##??? ?????????????????????? | | ????# #### ?????????????????????? | | #??????# ## ?????????????????????? | | #???????????# ## ??????????????????????? | | ##????????????# ???????????????????????? | | ##???????????### #####????????????????????? | | ##??#???? ##### ##hph#????????????????????? | | #???# ???? ## #????????????????????? | | #???? ###?????# #????????????????????? | | ##???? #?##### @ ##???????????????????? | | ##???# ### ###?????????????????? | | %##### #% #?????????????????? | | % % ##?????????????????? | | % ### ##??????????????????? | | %= ##?## ##???????????????????? | | # ######???####### #????????????????????? | | ###??????????????## ### ##????????????????????? | | ??????????????????#####?####?????????????????????? | | ?????????????????????????????????????????????????? | | ?????????????????????????????????????????????????? | | ?????????????????????????????????????????????????? | | ?????????????????????????????????????????????????? | | ?????????????????????????????????????????????????? | | ?????????????????????????????????????????????????? | | ?????????????????????????????????????????????????? | | ?????????????????????????????????????????????????? | | ?????????????????????????????????????????????????? | | ?????????????????????????????????????????????????? | | ?????????????????????????????????????????????????? | | ?????????????????????????????????????????????????? | | ?????????????????????????????????????????????????? | | ?????????????????????????????????????????????????? | | ?????????????????????????????????????????????????? | | | +----------------------------------------------------+ Best States ------------- Heat Dissipation 76 Energy Generation 21 Energy Capacity 325 Matter Stores 300 Matter Capacity 300 Sight Range 20 Robot Scan Range 15 Terrain Scan Density 210 Armor Coverage 825 Resistance: KI 20 Weapon Cycling 20 Evasion (%) 57 Targeting Accuracy 14 Target Analysis 6 Recoil Reduction 8 Salvage Targeting 1 Offensive Hacking 20 Item Schematics ----------------- Hacking Suite | -9/Materials | Scanalyzed Airjet | -9/Materials | Scanalyzed Grenade Launcher | -9/Materials | Scanalyzed Imp. Signal Interpreter | -9/Materials | Scanalyzed Robot Schematics ------------------ None Fabricated ------------ Hacking Suite | x1 | -7/Factory Alien Tech Used ----------------- None Achievements -------------- Charge!!! Challenges ------------ None Game ------ Seed GhostRecoilSteel Manual? 0 Play Time 01:17:59 Cumulative 61.4 hours Start 2024.03.31 @ 00:25:07 End 2024.03.31 @ 01:46:07 Sessions 1 Manual Loads 0 Difficulty Rogue Special Mode None Game No. 113 Rogue 113 Adventurer 0 Explorer 0 Win Type - Total 1 Types 1/0/0/0/0/0/0/0/0 Lore% 43 Gallery% 52 Achievement% 40 Wizard Run 0 Options --------- Layout 0 ASCII 0 Keyboard 0 Movement Numpad Keybinds 0 Fullscreen 1 Font 18/SmallcapsGlow Map View 76x50 Zoom Use 0% Tactical HUD 1 Map Filters NONE Filters NONE Steam 1 RUN: a89f9d57-b2ee-448b-bb52-35b4960b92ae